bitfinex/quotes_SOLUSD_20251001
["timestamp","ask_amount","ask_price","bid_price","bid_amount"]
[1759338017898,19.0,219.47,219.42,0.69]
[1759338018101,19.0,219.47,219.4,4.84219528]
[1759338018290,19.0,219.47,219.44,0.28432314]
[1759338018483,19.0,219.47,219.45,0.69]
[1759338018681,19.0,219.47,219.46,0.69]
[1759338018887,19.0,219.47,219.46,14.65951803]
[1759338020112,19.0,219.47,219.46,19.21615705]
[1759338020611,19.0,219.47,219.46,30.09263226]
[1759338020797,0.2,219.51,219.5,0.28432314]
[1759338021110,0.2,219.51,219.5,0.97432314]
[1759338021409,0.2,219.51,219.5,2.7985997]
[1759338022105,0.2,219.51,219.5,7.35440835]
[1759338023612,0.2,219.51,219.5,39.61440835]
[1759338027213,0.9,219.51,219.47,4.5564314]
[1759338027513,0.7,219.5,219.47,34.08469265]
[1759338027685,0.2,219.51,219.47,34.08469265]
[1759338028015,0.9,219.51,219.47,36.81534016]
[1759338029321,0.9,219.51,219.47,37.49534016]
[1759338029520,0.9,219.51,219.47,41.37176889]
[1759338029719,0.9,219.51,219.47,42.05176889]
[1759338029890,0.9,219.51,219.47,41.37176889]
[1759338030724,0.9,219.51,219.47,37.49534016]
[1759338030897,0.7,219.5,219.47,36.81534016]
[1759338031225,0.7,219.5,219.46,4.5566169]
[1759338031404,0.7,219.5,219.47,32.24]
[1759338031894,0.2,219.51,219.47,36.79642213]
[1759338032101,0.2,219.51,219.47,37.47642213]
[1759338032315,0.9,219.51,219.47,37.47642213]
[1759338033426,0.2,219.51,219.47,36.79642213]
[1759338033620,0.2,219.51,219.48,5.23612223]
[1759338035215,0.2,219.51,219.49,5.23600084]
[1759338035412,0.2,219.51,219.5,32.24]
[1759338035622,0.2,219.51,219.5,32.92]
[1759338036200,0.2,219.51,219.5,33.20432314]
[1759338036815,0.2,219.51,219.5,32.52432314]
[1759338037018,0.2,219.51,219.5,33.20432314]
[1759338037320,0.2,219.51,219.5,37.76013179]
[1759338038997,0.2,219.51,219.5,0.28432314]
[1759338039334,0.9,219.51,219.5,32.52432314]
[1759338039631,0.2,219.51,219.5,32.52432314]
[1759338040034,0.9,219.51,219.45,4.55680286]
[1759338040334,3.20288054,219.48,219.47,20.8]
[1759338040520,0.7,219.48,219.47,20.8]
[1759338041137,3.20288054,219.49,219.47,20.8]
[1759338041339,0.7,219.48,219.47,20.8]
[1759338041628,0.7,219.48,219.46,20.8]
[1759338041812,0.7,219.48,219.47,20.8]
[1759338042198,0.7,219.48,219.44,5.23705432]
[1759338042398,0.7,219.48,219.45,32.24]
[1759338042598,0.7,219.48,219.45,36.79667345]
[1759338043217,0.7,219.48,219.45,32.24]
[1759338043538,0.7,219.48,219.45,36.79683049]
[1759338046126,7.50318242,219.51,219.44,32.24]
[1759338046520,0.7,219.5,219.44,32.24]
[1759338046824,0.7,219.5,219.44,36.79686293]
[1759338047530,2.74751282,219.5,219.44,36.79686293]
[1759338047731,7.30334489,219.5,219.44,36.79686293]
[1759338048827,0.7,219.49,219.44,36.79686293]
[1759338049206,0.7,219.49,219.44,37.47686293]
[1759338049827,0.7,219.48,219.44,36.79686293]
[1759338050006,5.25583207,219.5,219.44,37.47686293]
[1759338051335,7.30334489,219.5,219.44,37.47686293]
[1759338052708,7.30334489,219.5,219.44,5.23686293]
[1759338052926,7.30334489,219.5,219.44,37.47686293]
[1759338054724,5.25583207,219.5,219.44,37.47686293]
[1759338054921,2.74751282,219.5,219.45,0.67]
[1759338055134,0.7,219.5,219.46,0.67]
[1759338055322,2.74751282,219.5,219.46,0.67]
[1759338056034,2.04751282,219.5,219.44,36.79686293]
[1759338056236,0.67,219.49,219.44,37.46686293]
[1759338056439,0.67,219.49,219.45,0.67]
[1759338056640,2.04751282,219.5,219.44,36.79686293]
[1759338056848,2.04751282,219.5,219.46,0.67]
[1759338057130,0.67,219.49,219.45,4.55676277]
[1759338057343,0.67,219.49,219.45,0.67]
[1759338058538,2.71751282,219.49,219.45,0.67]
[1759338059039,0.67,219.49,219.45,0.67]
[1759338059236,2.71751282,219.49,219.45,0.67]
[1759338059836,2.71751282,219.49,219.45,5.2267903]
[1759338060037,2.24751282,219.51,219.46,0.95432314]
[1759338060235,0.67,219.5,219.46,0.28432314]
[1759338060439,2.04751282,219.48,219.44,32.91]
[1759338060618,0.67,219.49,219.45,0.67]
[1759338060939,2.04751282,219.46,219.4,0.67]
[1759338061129,2.04751282,219.44,219.4,37.46775591]
[1759338061337,0.67,219.43,219.39,4.5579786]
[1759338061519,2.04751282,219.44,219.39,4.5579786]
[1759338061842,0.67,219.43,219.39,5.2279786]
[1759338062038,11.39013249,219.49,219.4,0.67]
[1759338062039,2.71751282,219.45,219.4,0.67]
[1759338062218,2.04751282,219.46,219.41,0.67]
[1759338062539,21.0,219.51,219.41,0.67]
[1759338062540,0.87,219.51,219.43,0.28432314]
[1759338062749,0.67,219.5,219.44,0.67]
[1759338063319,2.71751282,219.5,219.45,4.55684666]
[1759338063641,2.71751282,219.5,219.44,0.67]
[1759338063642,0.67,219.49,219.44,4.5570513]
[1759338063941,0.67,219.48,219.44,5.2270513]
[1759338064516,2.04751282,219.48,219.44,4.5570513]
[1759338064747,2.04751282,219.48,219.42,5.51158736]
[1759338064748,0.67,219.47,219.42,5.51158736]
[1759338064923,0.67,219.5,219.43,0.67]
[1759338065125,2.71751282,219.5,219.43,0.67]
[1759338065342,2.71751282,219.5,219.44,4.55705432]
[1759338065942,0.67,219.5,219.44,16.61969012]
[1759338066130,0.2,219.51,219.45,0.67]
[1759338066334,2.04751282,219.5,219.45,0.67]
[1759338066521,2.71751282,219.5,219.45,0.67]
[1759338067739,2.71751282,219.5,219.45,5.22678077]
[1759338070150,0.67,219.49,219.44,4.55705432]
[1759338070330,2.71751282,219.48,219.44,4.55705432]
[1759338070729,2.71751282,219.48,219.44,5.22705432]
[1759338070947,2.04751282,219.48,219.44,4.55705432]
[1759338071246,3.21211426,219.51,219.43,36.77725709]
[1759338071449,0.67,219.5,219.45,0.67]
[1759338071661,2.04751282,219.5,219.46,0.67]
[1759338071849,0.67,219.49,219.44,0.67]
[1759338072150,0.67,219.49,219.45,5.22672245]
[1759338073054,2.04751282,219.5,219.45,5.22672245]
[1759338073550,2.71751282,219.5,219.46,0.67]
[1759338074246,2.71751282,219.5,219.45,4.55672245]
[1759338074451,2.71751282,219.5,219.45,5.22672245]
[1759338075340,21.0,219.51,219.46,0.67]
[1759338075541,0.2,219.51,219.46,0.67]
[1759338075842,0.2,219.51,219.47,0.67]
[1759338076040,0.67,219.5,219.45,12.06211665]
[1759338076242,0.67,219.5,219.46,0.67]
[1759338077230,0.67,219.5,219.46,4.55653118]
[1759338077431,0.67,219.5,219.46,5.22653118]
[1759338078755,0.67,219.49,219.44,32.89]
[1759338078940,0.67,219.49,219.45,0.67]
[1759338079451,0.67,219.49,219.45,5.22677821]
[1759338079648,0.60779371,219.49,219.45,5.22677821]
[1759338079951,0.60779371,219.49,219.45,0.67]
[1759338080131,0.60779371,219.49,219.45,5.2267643]
[1759338080332,0.60779371,219.49,219.45,0.67]
[1759338080530,0.60779371,219.49,219.45,5.22677284]
[1759338080751,2.65530653,219.49,219.45,0.67]
[1759338080973,2.04751282,219.48,219.43,4.84154669]
[1759338081262,2.04751282,219.48,219.42,5.22738119]
[1759338081263,2.04751282,219.47,219.42,5.22738119]
[1759338081436,2.04751282,219.47,219.43,0.67]
[1759338081634,0.67,219.46,219.42,4.55738119]
[1759338081835,2.04751282,219.45,219.42,80.3]
[1759338082036,2.04751282,219.45,219.42,80.97]
[1759338082260,2.71751282,219.45,219.42,80.3]
[1759338083058,0.67,219.45,219.42,80.3]
[1759338083244,2.71751282,219.45,219.42,80.3]
[1759338083748,0.69,219.44,219.41,80.3]
[1759338083955,2.73751282,219.44,219.41,80.3]
[1759338084188,0.69,219.44,219.41,80.3]
[1759338084740,2.73751282,219.44,219.41,80.3]
[1759338085354,2.04751282,219.44,219.41,80.3]
[1759338085561,7.29439323,219.45,219.41,80.98]
[1759338085865,2.73751282,219.45,219.41,85.53765977]
[1759338086243,2.73751282,219.45,219.41,80.98]
[1759338086960,2.73751282,219.45,219.42,0.68]
[1759338087263,2.04751282,219.45,219.41,80.3]
[1759338087466,2.04751282,219.42,219.34,131.4]
[1759338087648,2.04751282,219.39,219.35,36.77880431]
[1759338087960,2.73751282,219.39,219.35,37.45880431]
[1759338088865,0.69,219.39,219.35,37.45880431]
[1759338089064,2.04751282,219.38,219.35,36.77880431]
[1759338089367,2.04751282,219.38,219.35,112.52]
[1759338089541,2.04751282,219.38,219.35,113.2]
[1759338090745,2.04751282,219.39,219.35,117.07889186]
[1759338090951,2.73751282,219.39,219.35,85.53889186]
[1759338091263,2.04751282,219.39,219.36,0.68]
[1759338091464,2.73751282,219.39,219.35,84.85889186]
[1759338091641,2.04751282,219.39,219.36,0.68]
[1759338092240,2.04751282,219.4,219.36,0.68]
[1759338092461,2.04751282,219.4,219.35,84.85889186]
[1759338092672,2.04751282,219.4,219.36,0.68]
[1759338092964,2.73751282,219.4,219.36,0.68]
[1759338093563,2.04751282,219.39,219.36,0.68]
[1759338093759,2.04751282,219.39,219.35,84.8588929]
[1759338093949,2.04751282,219.39,219.36,0.68]
[1759338094458,5.2479304,219.4,219.36,0.68]
[1759338094459,2.73751282,219.4,219.36,0.68]
[1759338094656,2.73751282,219.39,219.35,80.3]
[1759338094968,2.04751282,219.39,219.36,0.68]
[1759338095768,2.04751282,219.39,219.35,112.52]
[1759338095942,0.69,219.4,219.36,0.68]
[1759338096347,2.73751282,219.4,219.36,0.68]
[1759338097168,2.73751282,219.4,219.36,5.23862]
[1759338097963,18.21347279,219.42,219.36,5.23862]
[1759338098168,20.8,219.41,219.37,0.68]
[1759338098461,35.24755975,219.44,219.37,0.68]
[1759338098462,2.73751282,219.44,219.37,0.68]
[1759338099264,21.49,219.44,219.38,4.55830066]
[1759338099460,2.73751282,219.43,219.38,4.55830066]
[1759338099762,2.04751282,219.43,219.38,5.23830066]
[1759338100169,0.69,219.42,219.38,5.23830066]
[1759338100681,2.73751282,219.47,219.39,0.96432314]
[1759338100844,32.22,219.49,219.4,0.68]
[1759338101049,3.02299067,219.49,219.42,0.28432314]
[1759338101249,0.89,219.51,219.44,4.55705432]
[1759338101466,0.89,219.51,219.45,0.68]
[1759338101747,0.2,219.51,219.45,0.68]
[1759338101948,0.2,219.51,219.45,0.96432314]
[1759338102161,0.2,219.51,219.46,0.68]
[1759338102565,0.89,219.51,219.47,0.68]
[1759338103154,0.89,219.51,219.32,20.0]
[1759338103155,0.69,219.5,219.43,4.55723497]
[1759338103363,2.04751282,219.49,219.44,5.23700013]
[1759338103581,2.04751282,219.5,219.45,0.68]
[1759338103756,0.69,219.49,219.45,0.68]
[1759338104073,3.22299067,219.51,219.46,0.68]
[1759338104276,3.22299067,219.51,219.47,0.68]
[1759338104277,0.2,219.51,219.47,0.68]
[1759338104454,0.69,219.5,219.44,4.55700013]
[1759338104645,3.19694318,219.45,219.41,0.68]
[1759338104847,3.19694318,219.45,219.4,30.1]
[1759338104848,3.19694318,219.45,219.4,34.65788514]
[1759338105076,3.88694318,219.45,219.41,0.68]
[1759338105248,0.69,219.45,219.42,4.55746969]
[1759338105448,3.19694318,219.46,219.42,4.55746969]
[1759338105670,3.88694318,219.46,219.42,4.55746969]
[1759338106274,3.19694318,219.47,219.43,0.68]
[1759338106776,3.88694318,219.48,219.44,0.68]
[1759338107275,3.19694318,219.49,219.44,5.23684688]
[1759338107456,3.19694318,219.48,219.44,5.23684688]
[1759338107775,6.90993385,219.5,219.45,0.68]
[1759338108070,0.69,219.5,219.45,80.98]
[1759338108278,3.88694318,219.5,219.45,80.98]
[1759338108654,3.19694318,219.48,219.44,84.85684688]
[1759338108854,3.19694318,219.48,219.44,85.53684688]
[1759338109478,3.88694318,219.48,219.44,85.53684688]
[1759338110378,3.19694318,219.48,219.44,84.85684688]
[1759338110551,3.19694318,219.48,219.45,0.68]
[1759338110751,3.19694318,219.48,219.44,84.85684688]
[1759338110752,3.19694318,219.48,219.46,0.68]
[1759338110976,0.2,219.51,219.47,0.68]
[1759338111175,0.2,219.51,219.48,0.68]
[1759338111558,0.2,219.51,219.49,4.55601621]
[1759338111749,0.2,219.51,219.49,5.23601621]
[1759338112154,0.2,219.51,219.5,0.96432314]
[1759338112553,0.2,219.51,219.5,12.23516947]
[1759338113071,0.2,219.51,219.5,92.53516947]
[1759338113257,1e-08,219.51,219.5,103.41164468]
[1759338113465,1e-08,219.51,219.5,124.21164468]
[1759338113670,1e-08,219.51,219.5,107.96745333]
[1759338117167,1e-08,219.51,219.5,140.16745333]
[1759338119192,1e-08,219.55,219.54,31.96079835]
[1759338119362,0.2,219.64,219.62,80.18432313]
[1759338119557,0.2,219.64,219.62,112.38432313]
[1759338119764,0.2,219.64,219.62,33.20432314]
[1759338120074,0.2,219.64,219.62,39.5808381]
[1759338122078,0.2,219.64,219.62,7.3808381]
[1759338122275,0.2,219.64,219.62,50.43731331]
[1759338122477,1e-08,219.63,219.62,50.43731331]
[1759338124589,1e-08,219.64,219.63,0.28432314]
[1759338124793,1e-08,219.64,219.63,1.00432314]
[1759338125097,1e-08,219.64,219.63,11.88079835]
[1759338126475,1e-08,219.64,219.63,48.6139104]
[1759338127476,0.71,219.69,219.68,0.28432314]
[1759338127874,0.71,219.69,219.68,32.46432314]
[1759338128194,0.71,219.69,219.68,34.2871864]
[1759338129190,0.71,219.69,219.68,38.83926214]
[1759338129395,0.91,219.71,219.68,38.83926214]
[1759338129597,0.71,219.7,219.68,118.53926212]
[1759338129772,0.2,219.71,219.68,128.09658822]
[1759338130199,0.2,219.71,219.7,0.28432314]
[1759338130378,0.2,219.71,219.7,33.18432314]
[1759338130692,0.2,219.71,219.7,64.86079835]
[1759338130877,0.2,219.71,219.7,55.80668811]
[1759338131078,0.2,219.71,219.7,60.35834946]
[1759338131704,0.2,219.71,219.7,59.63834946]
[1759338131887,0.2,219.71,219.7,28.17834946]
[1759338132088,0.2,219.71,219.7,60.33834946]
[1759338132296,0.2,219.71,219.7,71.21482467]
[1759338133207,0.2,219.72,219.7,50.41482467]
[1759338133406,0.2,219.76,219.75,0.28432314]
[1759338133604,0.2,219.76,219.75,33.16432314]
[1759338134183,0.2,219.76,219.75,34.26635607]
[1759338134377,0.2,219.76,219.75,34.98635607]
[1759338134687,0.2,219.76,219.75,34.26635607]
[1759338134892,0.2,219.76,219.75,2.10635607]
[1759338135092,0.2,219.76,219.75,34.26635607]
[1759338135287,0.2,219.76,219.75,38.81698178]
[1759338135498,0.91,219.76,219.75,1.82203293]
[1759338135690,4.10694318,219.76,219.69,32.16]
[1759338135889,3.19694318,219.72,219.65,13.67147446]
[1759338136092,3.19694318,219.7,219.66,32.16]
[1759338136292,0.61,219.69,219.63,0.28432314]
[1759338136490,0.61,219.69,219.64,32.16]
[1759338136692,0.61,219.68,219.65,0.28432314]
[1759338136912,0.61,219.67,219.63,13.67334381]
[1759338137098,0.61,219.66,219.64,32.16]
[1759338139186,3.19694318,219.68,219.64,32.16]
[1759338139389,0.61,219.67,219.64,32.16]
[1759338141196,3.19694318,219.69,219.64,36.71288366]
[1759338141408,0.61,219.71,219.65,1.00432314]
[1759338141713,0.61,219.71,219.66,32.16]
[1759338142310,3.80694318,219.71,219.66,32.16]
[1759338142504,3.80694318,219.71,219.65,1.00432314]
[1759338142505,3.80694318,219.71,219.67,32.16]
[1759338142903,4.75044807,219.76,219.67,32.16]
[1759338143205,3.80694318,219.73,219.67,32.16]
[1759338144114,3.80694318,219.73,219.67,36.71214125]
[1759338146296,8.35798538,219.73,219.67,36.71214125]
[1759338147097,8.35798538,219.73,219.67,32.16]
[1759338147300,3.19694318,219.71,219.67,32.16]
[1759338147509,3.80694318,219.71,219.67,32.16]
[1759338147907,3.19694318,219.72,219.67,32.16]
[1759338148106,8.35820367,219.72,219.67,32.83]
[1759338148404,8.35820367,219.72,219.67,32.16]
[1759338148598,3.19694318,219.72,219.67,37.38224587]
[1759338149204,7.74799706,219.73,219.67,37.38224587]
[1759338149430,3.19694318,219.73,219.67,37.38224587]
[1759338149629,3.19694318,219.73,219.68,32.16]
[1759338150126,3.19694318,219.73,219.68,37.38194737]
[1759338150315,24.60694318,219.74,219.69,0.67]
[1759338150836,3.80694318,219.74,219.69,0.67]
[1759338151135,21.0,219.76,219.7,0.67]
[1759338151323,0.2,219.76,219.71,32.16]
[1759338151506,0.2,219.76,219.72,0.67]
[1759338151813,0.2,219.76,219.71,32.16]
[1759338151814,0.2,219.76,219.73,0.67]
[1759338152014,0.2,219.76,219.74,0.67]
[1759338152218,0.2,219.76,219.74,4.55078397]
[1759338152399,0.2,219.76,219.73,4.55103743]
[1759338152799,0.2,219.76,219.74,0.67]
[1759338153237,0.2,219.76,219.73,4.55103743]
[1759338153406,0.2,219.76,219.73,5.22103743]
[1759338154318,0.2,219.76,219.73,0.67]
[1759338154718,0.2,219.76,219.73,5.22094087]
[1759338155524,0.2,219.76,219.74,0.67]
[1759338156022,3.80694318,219.75,219.7,0.67]
[1759338156220,3.80694318,219.75,219.7,32.83]
[1759338156725,3.80694318,219.75,219.7,37.38159144]
[1759338157021,3.19694318,219.75,219.7,37.38159144]
[1759338157220,3.39694318,219.76,219.71,0.67]
[1759338157411,6.39239642,219.76,219.71,0.67]
[1759338157719,3.80545324,219.76,219.71,0.67]
[1759338158024,7.00239642,219.76,219.71,0.67]
[1759338158317,2.99545324,219.75,219.71,0.67]
[1759338158520,4.00694318,219.76,219.71,0.67]
[1759338158706,7.00239642,219.76,219.71,5.22137724]
[1759338159024,0.2,219.76,219.72,0.67]
[1759338159241,0.2,219.76,219.71,4.55137724]
[1759338159242,3.39694318,219.76,219.71,4.55137724]
[1759338159418,3.39694318,219.76,219.71,5.22137724]
[1759338159622,0.2,219.76,219.72,0.67]
[1759338159808,0.2,219.76,219.73,0.67]
[1759338160014,0.2,219.76,219.74,5.22077562]
[1759338160508,0.2,219.76,219.75,0.67]
[1759338161732,0.2,219.76,219.75,32.16]
[1759338161926,3.39694318,219.76,219.71,5.22127928]
[1759338162129,3.80694318,219.75,219.72,32.16]
[1759338162432,3.19694318,219.75,219.72,32.16]
[1759338162724,0.2,219.76,219.72,32.16]
[1759338162725,3.39694318,219.76,219.72,32.16]
[1759338162921,3.39694318,219.76,219.72,32.83]
[1759338163827,0.2,219.76,219.72,32.83]
[1759338165339,5.36047259,219.76,219.72,32.16]
[1759338165637,7.94741577,219.76,219.7,4.55165458]
[1759338165817,7.94741577,219.76,219.72,32.14]
[1759338166024,7.94741577,219.76,219.72,32.81]
[1759338166334,6.79230293,219.76,219.72,32.14]
[1759338166533,2.04183034,219.73,219.68,0.67]
[1759338166771,2.65183034,219.73,219.68,32.81]
[1759338167029,4.75047259,219.76,219.68,32.81]
[1759338167030,0.61,219.75,219.68,32.14]
[1759338167252,2.04183034,219.73,219.68,32.81]
[1759338167412,2.04183034,219.73,219.69,0.67]
[1759338168319,6.59287276,219.73,219.69,0.67]
[1759338168523,2.04183034,219.73,219.69,0.67]
[1759338168714,3.22511588,219.76,219.7,0.67]
[1759338168917,6.79226203,219.76,219.7,0.67]
[1759338169119,6.79226203,219.76,219.69,4.55185386]
[1759338169120,2.04183034,219.75,219.69,4.55185386]
[1759338169318,2.04183034,219.74,219.69,4.55185386]
[1759338169521,2.04183034,219.74,219.69,37.36185386]
[1759338169738,2.04183034,219.74,219.7,0.67]
[1759338170128,0.2,219.76,219.71,0.67]
[1759338170322,2.24183034,219.76,219.72,0.67]
[1759338170530,7.40228173,219.76,219.7,0.67]
[1759338170739,6.79228173,219.76,219.7,0.67]
[1759338171045,2.24183034,219.76,219.7,0.67]
[1759338171249,0.2,219.76,219.7,0.67]
[1759338171544,0.2,219.76,219.71,32.14]
[1759338171749,0.2,219.76,219.72,0.67]
[1759338172341,4.75045902,219.76,219.72,0.67]
[1759338173619,0.2,219.76,219.72,4.5512083]
[1759338173819,0.2,219.76,219.73,5.22099018]
[1759338174336,0.2,219.76,219.74,0.67]
[1759338174735,0.2,219.76,219.71,36.69128356]
[1759338175043,0.2,219.76,219.74,0.67]
[1759338176128,0.2,219.76,219.75,0.67]
[1759338176324,0.2,219.76,219.72,4.83557018]
[1759338176530,6.79227069,219.76,219.72,32.81]
[1759338176826,2.24183034,219.76,219.72,32.81]
[1759338177428,2.24183034,219.76,219.72,32.14]
[1759338177644,2.04183034,219.75,219.72,32.14]
[1759338178030,2.04183034,219.75,219.7,5.50596556]
[1759338178230,2.04183034,219.75,219.7,36.69164242]
[1759338178544,2.04183034,219.75,219.71,0.67]
[1759338179142,4.55069749,219.75,219.71,0.67]
[1759338179349,2.04183034,219.75,219.71,0.67]
[1759338179834,2.04183034,219.75,219.7,4.55166008]
[1759338180151,2.04183034,219.75,219.71,0.67]
[1759338180553,2.04183034,219.75,219.72,0.67]
[1759338180955,6.7922564,219.76,219.72,0.67]
[1759338181136,0.2,219.76,219.73,0.67]
[1759338182849,0.2,219.76,219.71,4.55124861]
[1759338183158,0.2,219.76,219.72,0.67]
[1759338183956,0.2,219.76,219.73,0.67]
[1759338184160,0.2,219.76,219.7,15.93067554]
[1759338184361,0.2,219.76,219.72,0.67]
[1759338184948,4.75046935,219.76,219.73,0.67]
[1759338185152,7.40229969,219.76,219.7,5.22166135]
[1759338186256,6.79229969,219.76,219.71,5.22145125]
[1759338186463,6.79229969,219.76,219.72,0.67]
[1759338186958,4.75046935,219.76,219.71,4.55145125]
[1759338187255,6.79229969,219.76,219.72,0.67]
[1759338187766,0.2,219.76,219.73,0.67]
[1759338187943,0.2,219.76,219.71,5.22145125]
[1759338188143,2.24183034,219.76,219.72,0.67]
[1759338188340,2.24183034,219.76,219.68,32.42432314]
[1759338188546,2.24183034,219.76,219.72,0.67]
[1759338189150,6.79232287,219.76,219.72,0.67]
[1759338189354,4.75049253,219.76,219.72,0.67]
[1759338189568,6.79232287,219.76,219.72,0.67]
[1759338190766,2.04183034,219.73,219.66,0.67]
[1759338190963,2.04183034,219.71,219.66,0.67]
[1759338191341,11.5285821,219.75,219.66,0.67]
[1759338191342,2.04183034,219.72,219.66,0.95432314]
[1759338191536,11.5285821,219.75,219.67,0.67]
[1759338191741,13.57041244,219.75,219.67,0.67]
[1759338192044,8.38798612,219.76,219.67,0.67]
[1759338192377,2.04183034,219.75,219.67,0.67]
[1759338192559,2.04183034,219.75,219.68,4.55207574]
[1759338192759,27.39245737,219.75,219.69,0.67]
[1759338193265,25.35062703,219.75,219.69,0.67]
[1759338193443,27.39245737,219.75,219.69,0.67]
[1759338193645,2.04183034,219.74,219.69,0.67]
[1759338193851,2.04183034,219.74,219.7,0.67]
[1759338194367,2.04183034,219.74,219.7,5.22163099]
[1759338194562,6.59266903,219.74,219.69,4.55186436]
[1759338194863,6.59266903,219.74,219.69,0.67]
[1759338195164,2.04183034,219.73,219.69,0.67]
[1759338195564,2.04183034,219.72,219.67,5.22228027]
[1759338195863,2.04183034,219.68,219.62,5.22331936]
[1759338196047,2.04183034,219.65,219.62,5.22331936]
[1759338196373,2.04183034,219.65,219.63,0.67]
[1759338196790,2.04183034,219.66,219.63,0.67]
[1759338198554,2.04183034,219.66,219.62,4.55317489]
[1759338198763,2.04183034,219.66,219.62,5.22317489]
[1759338199956,2.04183034,219.66,219.63,0.67]
[1759338201474,2.04183034,219.64,219.58,4.55394503]
[1759338201663,2.04183034,219.61,219.57,0.67]
[1759338201969,2.04183034,219.6,219.57,0.67]
[1759338202176,2.04183034,219.61,219.57,4.55427539]
[1759338202487,2.04183034,219.61,219.57,5.22427539]
[1759338202989,2.04183034,219.61,219.57,0.67]
[1759338203771,2.04183034,219.61,219.57,5.22433525]
[1759338204190,21.41,219.63,219.58,0.71]
[1759338204352,2.04183034,219.62,219.58,0.291]
[1759338204553,20.8,219.63,219.57,4.55433525]
[1759338204754,22.84183034,219.63,219.57,4.55433525]
[1759338205864,20.8,219.63,219.57,4.55433525]
[1759338206161,22.84183034,219.63,219.57,4.55433525]
[1759338206673,22.84183034,219.63,219.56,0.71]
[1759338206674,2.04183034,219.62,219.56,0.71]
[1759338206878,2.71183034,219.62,219.56,0.71]
[1759338207079,0.67,219.62,219.56,0.71]
[1759338208576,0.67,219.62,219.57,4.55435624]
[1759338208778,0.67,219.62,219.57,5.26435624]
[1759338209566,0.67,219.61,219.57,4.55435624]
[1759338209767,0.67,219.6,219.57,4.55435624]
[1759338209960,0.67,219.62,219.57,4.55435624]
[1759338210185,0.67,219.62,219.57,5.26435624]
[1759338210375,0.67,219.61,219.57,5.26435624]
[1759338211061,2.04183034,219.62,219.57,5.26435624]
[1759338211261,18.49168351,219.64,219.57,5.26435624]
[1759338211262,13.93874576,219.64,219.58,0.71]
[1759338211465,22.84183034,219.64,219.58,0.71]
[1759338211669,20.8,219.64,219.58,0.99432314]
[1759338211871,0.67,219.66,219.58,0.99432314]
[1759338212167,0.67,219.68,219.59,0.71]
[1759338212364,0.67,219.68,219.6,0.28432314]
[1759338212684,20.8,219.68,219.61,16.64734346]
[1759338212896,20.8,219.68,219.62,0.71]
[1759338213104,2.04183034,219.69,219.62,0.71]
[1759338213480,20.8,219.68,219.62,0.71]
[1759338214388,2.04183034,219.69,219.62,0.71]
[1759338214574,2.04183034,219.69,219.63,4.55311205]
[1759338214777,2.04183034,219.69,219.63,5.26311205]
[1759338215488,13.95108319,219.7,219.63,15.93589218]
[1759338215689,13.95108319,219.7,219.64,0.71]
[1759338216669,13.95108319,219.7,219.65,4.55269747]
[1759338216870,11.90925285,219.7,219.65,4.55269747]
[1759338217094,13.28108319,219.7,219.66,0.71]
[1759338217470,11.90925285,219.7,219.66,0.71]
[1759338217672,13.95108319,219.7,219.66,0.71]
[1759338217866,13.28108319,219.7,219.66,0.71]
[1759338218088,13.28108319,219.7,219.67,4.55228296]
[1759338218401,11.23925285,219.7,219.67,4.55228296]
[1759338219191,11.23925285,219.7,219.67,5.26228296]